[Event "Early-Titled-Tuesday-Blitz-April-02-2024"]
[Site "Chess.com"]
[Date "2024.04.02"]
[Round "10"]
[White "AnaKuchava"]
[Black "Barbix1"]
[Result "1-0"]
[WhiteElo "2192"]
[BlackElo "2290"]
[TimeControl "180+1"]
[EndTime "9:56:38 PDT"]
[Termination "AnaKuchava won on time"]

1. d4 {[%clk 0:03:00.9]} 1... Nf6 {[%clk 0:02:58.6]} 2. Nf3 {[%clk 0:02:59.7]}
2... g6 {[%clk 0:02:56.4]} 3. c4 {[%clk 0:02:57.7]} 3... Bg7 {[%clk 0:02:45.6]}
4. Nc3 {[%clk 0:02:56.5]} 4... d5 {[%clk 0:02:45.6]} 5. Bg5 {[%clk 0:02:47.7]}
5... Ne4 {[%clk 0:02:04.6]} 6. Bf4 {[%clk 0:02:43.5]} 6... Nxc3 {[%clk 0:01:59]}
7. bxc3 {[%clk 0:02:42.6]} 7... O-O {[%clk 0:01:59.6]} 8. e3 {[%clk 0:02:39.8]}
8... c5 {[%clk 0:01:57.9]} 9. cxd5 {[%clk 0:02:32.8]} 9... Qxd5 {[%clk
0:01:55.7]} 10. Be2 {[%clk 0:02:33.2]} 10... Nc6 {[%clk 0:01:48.5]} 11. O-O
{[%clk 0:02:31.8]} 11... Bf5 {[%clk 0:01:24.7]} 12. Qa4 {[%clk 0:02:23.9]} 12...
cxd4 {[%clk 0:01:08.3]} 13. cxd4 {[%clk 0:02:21.7]} 13... Rfc8 {[%clk
0:01:05.9]} 14. Rfc1 {[%clk 0:02:17.2]} 14... a5 {[%clk 0:00:54.8]} 15. Bc4
{[%clk 0:01:34]} 15... Qd7 {[%clk 0:00:37.9]} 16. Bb5 {[%clk 0:01:32]} 16... Be4
{[%clk 0:00:20.8]} 17. Ne5 {[%clk 0:01:28.4]} 17... Qf5 {[%clk 0:00:13.5]} 18.
f3 {[%clk 0:01:22.6]} 18... Bd5 {[%clk 0:00:06]} 19. Nxc6 {[%clk 0:01:04.3]}
19... Bxc6 {[%clk 0:00:05.9]} 20. Bxc6 {[%clk 0:01:04.6]} 20... bxc6 {[%clk
0:00:06.2]} 21. Rxc6 {[%clk 0:01:05.5]} 21... Rxc6 {[%clk 0:00:04.8]} 22. Qxc6
{[%clk 0:01:06.4]} 22... Rc8 {[%clk 0:00:04.8]} 23. Qb7 {[%clk 0:00:53.6]} 23...
Rc2 {[%clk 0:00:03.5]} 24. Qxe7 {[%clk 0:00:51.2]} 24... Bf8 {[%clk 0:00:03.3]}
25. Qe4 {[%clk 0:00:47.4]} 25... Qc8 {[%clk 0:00:02.6]} 26. h4 {[%clk
0:00:42.6]} 26... Qc3 {[%clk 0:00:02.4]} 27. Rb1 {[%clk 0:00:37.3]} 27... Qd2
{[%clk 0:00:02.4]} 28. Qxc2 {[%clk 0:00:20.1]} 28... Qxc2 {[%clk 0:00:03.3]} 29.
Rb8 {[%clk 0:00:19.6]} 29... Kg7 {[%clk 0:00:03.9]} 30. Be5+ {[%clk 0:00:17.1]}
30... f6 {[%clk 0:00:03.8]} 31. Rb7+ {[%clk 0:00:16.8]} 31... Kg8 {[%clk
0:00:03.2]} 32. Bxf6 {[%clk 0:00:17.1]} 32... Qc1+ {[%clk 0:00:02.8]} 33. Kh2
{[%clk 0:00:16.9]} 33... Qxe3 {[%clk 0:00:03.1]} 34. Be5 {[%clk 0:00:13.5]}
34... Qd2 {[%clk 0:00:02.5]} 35. Rb8 {[%clk 0:00:12.1]} 35... Kf7 {[%clk
0:00:01.5]} 36. Rb7+ {[%clk 0:00:12.5]} 36... Ke6 {[%clk 0:00:01.7]} 37. Rb6+
{[%clk 0:00:11.5]} 37... Kd5 {[%clk 0:00:01.2]} 38. Rb5+ {[%clk 0:00:11.9]}
38... Kc4 {[%clk 0:00:01]} 39. a4 {[%clk 0:00:10.9]} 1-0

[Event "Early-Titled-Tuesday-Blitz-April-02-2024"]
[Site "Chess.com"]
[Date "2024.04.02"]
[Round "10"]
[White "lilleper1"]
[Black "bascheyaro"]
[Result "1-0"]
[WhiteElo "2928"]
[BlackElo "2818"]
[TimeControl "180+1"]
[EndTime "9:56:39 PDT"]
[Termination "lilleper1 won by resignation"]

1. e4 {[%clk 0:03:00.9]} 1... e6 {[%clk 0:03:00.3]} 2. d4 {[%clk 0:03:00.2]}
2... d5 {[%clk 0:03:00.7]} 3. Nd2 {[%clk 0:03:00.9]} 3... c5 {[%clk 0:03:00.9]}
4. Ngf3 {[%clk 0:02:59.1]} 4... Nc6 {[%clk 0:03:01.3]} 5. exd5 {[%clk 0:02:58]}
5... exd5 {[%clk 0:03:02.2]} 6. Bb5 {[%clk 0:02:57.6]} 6... c4 {[%clk
0:03:02.7]} 7. O-O {[%clk 0:02:56.1]} 7... Bd6 {[%clk 0:03:03.3]} 8. Re1+ {[%clk
0:02:52.4]} 8... Ne7 {[%clk 0:03:03.5]} 9. b3 {[%clk 0:02:51.9]} 9... cxb3
{[%clk 0:03:04.4]} 10. axb3 {[%clk 0:02:49.1]} 10... O-O {[%clk 0:03:05]} 11. c3
{[%clk 0:02:44.6]} 11... Bf5 {[%clk 0:03:04.6]} 12. Nh4 {[%clk 0:02:40.3]} 12...
Be6 {[%clk 0:02:34.8]} 13. Bd3 {[%clk 0:02:39.9]} 13... Ng6 {[%clk 0:02:34.8]}
14. Nf5 {[%clk 0:02:18.7]} 14... Bc7 {[%clk 0:02:16.9]} 15. Nf1 {[%clk
0:02:04.4]} 15... Re8 {[%clk 0:02:14.9]} 16. Qf3 {[%clk 0:01:52.8]} 16... Nh4
{[%clk 0:02:04]} 17. Nxh4 {[%clk 0:01:42.8]} 17... Qxh4 {[%clk 0:02:04.9]} 18.
g3 {[%clk 0:01:32.5]} 18... Qh3 {[%clk 0:02:02.7]} 19. Ne3 {[%clk 0:01:30.3]}
19... Bg4 {[%clk 0:01:21.2]} 20. Qxd5 {[%clk 0:01:26.2]} 20... Rad8 {[%clk
0:01:21.3]} 21. Qg2 {[%clk 0:01:23.3]} 21... Ne5 {[%clk 0:01:14.4]} 22. dxe5
{[%clk 0:01:14.9]} 22... Rxd3 {[%clk 0:01:13.2]} 23. Nxg4 {[%clk 0:01:14]} 23...
Qxg4 {[%clk 0:01:13.1]} 24. Be3 {[%clk 0:01:10.4]} 24... Qc8 {[%clk 0:00:48.8]}
25. Bd4 {[%clk 0:01:08.2]} 25... Bb6 {[%clk 0:00:43.1]} 26. Qe4 {[%clk
0:00:55.9]} 26... Rd2 {[%clk 0:00:43.5]} 27. Bxb6 {[%clk 0:00:48]} 27... axb6
{[%clk 0:00:43.3]} 28. Qe3 {[%clk 0:00:48]} 28... Rb2 {[%clk 0:00:38.1]} 29. c4
{[%clk 0:00:47.8]} 29... Qc5 {[%clk 0:00:35]} 30. Qxc5 {[%clk 0:00:46.6]} 30...
bxc5 {[%clk 0:00:35.4]} 31. Re3 {[%clk 0:00:47.2]} 31... f6 {[%clk 0:00:34.3]}
32. e6 {[%clk 0:00:45.3]} 32... Rd2 {[%clk 0:00:22.9]} 33. Ra7 {[%clk
0:00:38.9]} 33... Rd6 {[%clk 0:00:16.5]} 34. Rxb7 {[%clk 0:00:38.1]} 34... Rexe6
{[%clk 0:00:16.9]} 35. Rxe6 {[%clk 0:00:35.4]} 35... Rxe6 {[%clk 0:00:17.8]} 36.
Rb5 {[%clk 0:00:33.7]} 36... Re1+ {[%clk 0:00:17.1]} 37. Kg2 {[%clk 0:00:33.3]}
37... Rb1 {[%clk 0:00:17.4]} 38. h4 {[%clk 0:00:32.6]} 38... Kf7 {[%clk
0:00:17]} 39. h5 {[%clk 0:00:32.6]} 39... Ke6 {[%clk 0:00:16.8]} 40. Rxc5 {[%clk
0:00:28.9]} 40... Rxb3 {[%clk 0:00:16.7]} 41. Rc7 {[%clk 0:00:29.5]} 41... Rc3
{[%clk 0:00:08.9]} 42. Rxg7 {[%clk 0:00:28.6]} 42... Rxc4 {[%clk 0:00:09.5]} 43.
Rxh7 {[%clk 0:00:28.8]} 43... Kf5 {[%clk 0:00:10.1]} 44. Rg7 {[%clk 0:00:27.2]}
44... Ke6 {[%clk 0:00:07.4]} 45. h6 {[%clk 0:00:27.1]} 45... Rc8 {[%clk
0:00:07.6]} 46. h7 {[%clk 0:00:25.7]} 46... Rh8 {[%clk 0:00:07.8]} 47. g4 {[%clk
0:00:26.2]} 47... f5 {[%clk 0:00:08.1]} 48. g5 {[%clk 0:00:26.5]} 1-0

[Event "Early-Titled-Tuesday-Blitz-April-02-2024"]
[Site "Chess.com"]
[Date "2024.04.02"]
[Round "10"]
[White "KetiTsatsalashvili"]
[Black "Felix-Rose"]
[Result "1-0"]
[WhiteElo "2432"]
[BlackElo "2317"]
[TimeControl "180+1"]
[EndTime "9:56:39 PDT"]
[Termination "KetiTsatsalashvili won on time"]

1. d4 {[%clk 0:03:00.9]} 1... d5 {[%clk 0:02:59.3]} 2. Nf3 {[%clk 0:02:59.1]}
2... Nf6 {[%clk 0:02:59.5]} 3. c4 {[%clk 0:02:53.5]} 3... e6 {[%clk 0:02:59.7]}
4. Bg5 {[%clk 0:02:51.7]} 4... Be7 {[%clk 0:02:59.6]} 5. e3 {[%clk 0:02:51.7]}
5... Nbd7 {[%clk 0:02:59.5]} 6. Nc3 {[%clk 0:02:51.2]} 6... h6 {[%clk
0:02:58.6]} 7. Bh4 {[%clk 0:02:50.4]} 7... O-O {[%clk 0:02:59.1]} 8. Rc1 {[%clk
0:02:37.6]} 8... c5 {[%clk 0:02:57.5]} 9. Bd3 {[%clk 0:02:29.3]} 9... cxd4
{[%clk 0:02:49]} 10. exd4 {[%clk 0:02:24.6]} 10... dxc4 {[%clk 0:02:48]} 11.
Bxc4 {[%clk 0:02:24.3]} 11... Nb6 {[%clk 0:02:40.6]} 12. Bd3 {[%clk 0:02:21.2]}
12... Bd7 {[%clk 0:02:38.3]} 13. Ne5 {[%clk 0:02:17]} 13... Bc6 {[%clk
0:02:37.2]} 14. O-O {[%clk 0:02:09.2]} 14... Rc8 {[%clk 0:02:36.9]} 15. Re1
{[%clk 0:02:04.3]} 15... Nbd5 {[%clk 0:02:30.9]} 16. Nxc6 {[%clk 0:02:00.3]}
16... Rxc6 {[%clk 0:02:23.4]} 17. Nxd5 {[%clk 0:02:00.5]} 17... Nxd5 {[%clk
0:02:14.2]} 18. Rxc6 {[%clk 0:02:00.1]} 18... bxc6 {[%clk 0:02:04.4]} 19. Bg3
{[%clk 0:02:00]} 19... Bf6 {[%clk 0:01:50.4]} 20. Be5 {[%clk 0:01:59.2]} 20...
Qb6 {[%clk 0:01:44.8]} 21. Qe2 {[%clk 0:01:45.8]} 21... Bxe5 {[%clk 0:01:27.8]}
22. Qe4 {[%clk 0:01:19]} 22... Nf6 {[%clk 0:01:26.4]} 23. Qxe5 {[%clk
0:01:18.5]} 23... Qxb2 {[%clk 0:01:20.8]} 24. Bc4 {[%clk 0:01:10]} 24... Rd8
{[%clk 0:01:03.9]} 25. Rd1 {[%clk 0:01:05.7]} 25... Ng4 {[%clk 0:00:25.2]} 26.
Qf4 {[%clk 0:01:04.1]} 26... Nf6 {[%clk 0:00:08.2]} 27. Bb3 {[%clk 0:00:45.2]}
27... c5 {[%clk 0:00:06.3]} 28. dxc5 {[%clk 0:00:36]} 28... Rxd1+ {[%clk
0:00:06.2]} 29. Bxd1 {[%clk 0:00:36.9]} 29... Qxa2 {[%clk 0:00:07]} 30. h3
{[%clk 0:00:24.8]} 30... Qb1 {[%clk 0:00:05.3]} 31. Qd2 {[%clk 0:00:21.4]} 31...
Nd5 {[%clk 0:00:04.7]} 32. Kh2 {[%clk 0:00:20.1]} 32... Qb8+ {[%clk 0:00:04.5]}
33. g3 {[%clk 0:00:18.6]} 33... Qc7 {[%clk 0:00:04.8]} 34. Qd4 {[%clk
0:00:18.6]} 34... a5 {[%clk 0:00:05.4]} 35. Bc2 {[%clk 0:00:18.5]} 35... g6
{[%clk 0:00:05.8]} 36. Be4 {[%clk 0:00:16.8]} 36... Nb4 {[%clk 0:00:06.3]} 37.
c6 {[%clk 0:00:15.5]} 37... h5 {[%clk 0:00:06]} 38. Qd7 {[%clk 0:00:13.8]} 38...
Na6 {[%clk 0:00:05.6]} 39. Bd3 {[%clk 0:00:11.1]} 1-0

[Event "Early-Titled-Tuesday-Blitz-April-02-2024"]
[Site "Chess.com"]
[Date "2024.04.02"]
[Round "10"]
[White "Anton_Demchenko"]
[Black "Harry_Rakkel"]
[Result "1-0"]
[WhiteElo "2965"]
[BlackElo "2730"]
[TimeControl "180+1"]
[EndTime "9:56:40 PDT"]
[Termination "Anton_Demchenko won on time"]

1. e4 {[%clk 0:03:00.9]} 1... c6 {[%clk 0:02:59.2]} 2. d4 {[%clk 0:03:01.1]}
2... d5 {[%clk 0:02:58.9]} 3. e5 {[%clk 0:03:01.8]} 3... Bf5 {[%clk 0:02:58.5]}
4. Bd3 {[%clk 0:03:02.5]} 4... Bxd3 {[%clk 0:02:55.5]} 5. Qxd3 {[%clk
0:03:03.4]} 5... e6 {[%clk 0:02:55.2]} 6. c3 {[%clk 0:03:04.3]} 6... Ne7 {[%clk
0:02:53.8]} 7. Ne2 {[%clk 0:03:05.2]} 7... a5 {[%clk 0:02:52.7]} 8. O-O {[%clk
0:03:05.5]} 8... a4 {[%clk 0:02:52.4]} 9. Na3 {[%clk 0:03:01.9]} 9... Nd7 {[%clk
0:02:49.8]} 10. Bd2 {[%clk 0:02:57.9]} 10... b5 {[%clk 0:02:49.4]} 11. Nc2
{[%clk 0:02:55.9]} 11... Nf5 {[%clk 0:02:38.3]} 12. Ne3 {[%clk 0:02:14.8]} 12...
Nh4 {[%clk 0:02:28.2]} 13. Kh1 {[%clk 0:01:59.6]} 13... g6 {[%clk 0:02:25.6]}
14. b3 {[%clk 0:01:55.2]} 14... Be7 {[%clk 0:02:18.9]} 15. Nf4 {[%clk
0:01:42.5]} 15... Bg5 {[%clk 0:01:41.3]} 16. Nh3 {[%clk 0:01:37.2]} 16... Be7
{[%clk 0:01:41]} 17. Rab1 {[%clk 0:01:30.3]} 17... axb3 {[%clk 0:01:34.7]} 18.
axb3 {[%clk 0:01:30.2]} 18... O-O {[%clk 0:01:30]} 19. g3 {[%clk 0:01:29.7]}
19... Nf5 {[%clk 0:01:28.1]} 20. Nxf5 {[%clk 0:01:29.5]} 20... exf5 {[%clk
0:01:25.6]} 21. e6 {[%clk 0:01:15.1]} 21... fxe6 {[%clk 0:01:05.4]} 22. Qe2
{[%clk 0:01:11.3]} 22... e5 {[%clk 0:00:58.2]} 23. dxe5 {[%clk 0:01:11.9]} 23...
Nc5 {[%clk 0:00:55.2]} 24. Bh6 {[%clk 0:01:04.9]} 24... Re8 {[%clk 0:00:53.2]}
25. f3 {[%clk 0:00:58.8]} 25... Ra3 {[%clk 0:00:37.4]} 26. Qc2 {[%clk
0:00:51.4]} 26... Qa8 {[%clk 0:00:33.8]} 27. Nf2 {[%clk 0:00:35.5]} 27... Rd8
{[%clk 0:00:24.6]} 28. Bc1 {[%clk 0:00:23.9]} 28... Ra2 {[%clk 0:00:23.6]} 29.
Rb2 {[%clk 0:00:24.6]} 29... Rxb2 {[%clk 0:00:22.4]} 30. Bxb2 {[%clk 0:00:25.3]}
30... Ne6 {[%clk 0:00:22.2]} 31. b4 {[%clk 0:00:23.4]} 31... c5 {[%clk
0:00:20.5]} 32. bxc5 {[%clk 0:00:23.8]} 32... Bxc5 {[%clk 0:00:20.2]} 33. Nd3
{[%clk 0:00:24.4]} 33... Qc6 {[%clk 0:00:18]} 34. Kg2 {[%clk 0:00:24.1]} 34...
Rc8 {[%clk 0:00:17.6]} 35. Qb3 {[%clk 0:00:23.3]} 35... Bf8 {[%clk 0:00:16.1]}
36. Ra1 {[%clk 0:00:22]} 36... h5 {[%clk 0:00:15]} 37. h4 {[%clk 0:00:21.6]}
37... Bg7 {[%clk 0:00:14.2]} 38. Nb4 {[%clk 0:00:20]} 38... Qe8 {[%clk
0:00:07.5]} 39. Qxd5 {[%clk 0:00:19.6]} 39... Rd8 {[%clk 0:00:07]} 40. Qb3
{[%clk 0:00:19.2]} 40... Rd2+ {[%clk 0:00:06.7]} 41. Kf1 {[%clk 0:00:14.7]}
41... Kh7 {[%clk 0:00:03.2]} 42. Re1 {[%clk 0:00:14]} 42... Qa8 {[%clk 0:00:02]}
43. Re3 {[%clk 0:00:11.1]} 1-0

[Event "Early-Titled-Tuesday-Blitz-April-02-2024"]
[Site "Chess.com"]
[Date "2024.04.02"]
[Round "10"]
[White "Licancabur"]
[Black "Refrigerator1955"]
[Result "1/2-1/2"]
[WhiteElo "2468"]
[BlackElo "2006"]
[TimeControl "180+1"]
[EndTime "9:56:45 PDT"]
[Termination "Game drawn - insufficient material"]

1. Nf3 {[%clk 0:03:00.9]} 1... d5 {[%clk 0:02:59]} 2. b3 {[%clk 0:03:00.6]} 2...
Nf6 {[%clk 0:02:57.9]} 3. Bb2 {[%clk 0:03:01]} 3... g6 {[%clk 0:02:57.5]} 4. e3
{[%clk 0:02:59.9]} 4... Bg7 {[%clk 0:02:57.2]} 5. d4 {[%clk 0:02:50.5]} 5... O-O
{[%clk 0:02:56.3]} 6. Nbd2 {[%clk 0:02:50.3]} 6... b6 {[%clk 0:02:56.2]} 7. Bd3
{[%clk 0:02:48.7]} 7... Bb7 {[%clk 0:02:56]} 8. c4 {[%clk 0:02:41.2]} 8... e6
{[%clk 0:02:53.9]} 9. Rc1 {[%clk 0:02:38.5]} 9... Nbd7 {[%clk 0:02:46.6]} 10.
O-O {[%clk 0:02:37.2]} 10... c5 {[%clk 0:02:45.5]} 11. Qe2 {[%clk 0:02:27.6]}
11... Rc8 {[%clk 0:02:43.2]} 12. e4 {[%clk 0:02:13.4]} 12... dxe4 {[%clk
0:02:40.3]} 13. Nxe4 {[%clk 0:02:13.4]} 13... Nxe4 {[%clk 0:02:30.6]} 14. Bxe4
{[%clk 0:02:13.6]} 14... Bxe4 {[%clk 0:02:30]} 15. Qxe4 {[%clk 0:02:13.9]} 15...
cxd4 {[%clk 0:02:25.7]} 16. Nxd4 {[%clk 0:02:10.6]} 16... Nc5 {[%clk 0:02:24]}
17. Qe3 {[%clk 0:02:01.8]} 17... Qh4 {[%clk 0:02:09.1]} 18. Rcd1 {[%clk
0:01:47.4]} 18... Rfd8 {[%clk 0:02:05]} 19. Nf3 {[%clk 0:01:27.9]} 19... Qh6
{[%clk 0:01:48.3]} 20. Qxh6 {[%clk 0:01:12.5]} 20... Bxh6 {[%clk 0:01:47.6]} 21.
Bf6 {[%clk 0:01:10.5]} 21... Rxd1 {[%clk 0:01:41.2]} 22. Rxd1 {[%clk 0:01:10.2]}
22... Bg7 {[%clk 0:01:40.7]} 23. Bxg7 {[%clk 0:00:50.2]} 23... Kxg7 {[%clk
0:01:40]} 24. Nd4 {[%clk 0:00:50.8]} 24... a6 {[%clk 0:01:32.5]} 25. Kf1 {[%clk
0:00:48.9]} 25... Kf6 {[%clk 0:01:31]} 26. Ke2 {[%clk 0:00:47.8]} 26... Ne4
{[%clk 0:01:27.5]} 27. Rd3 {[%clk 0:00:42.1]} 27... b5 {[%clk 0:01:17]} 28. cxb5
{[%clk 0:00:35.9]} 28... axb5 {[%clk 0:01:16]} 29. Nxb5 {[%clk 0:00:30.6]} 29...
Rc2+ {[%clk 0:01:15]} 30. Ke3 {[%clk 0:00:30.9]} 30... Nxf2 {[%clk 0:01:14.4]}
31. Rd2 {[%clk 0:00:20]} 31... Ng4+ {[%clk 0:01:13.3]} 32. Ke2 {[%clk
0:00:19.9]} 32... Rxd2+ {[%clk 0:01:12.5]} 33. Kxd2 {[%clk 0:00:20]} 33... Nxh2
{[%clk 0:01:12.5]} 34. a4 {[%clk 0:00:20.3]} 34... Ke5 {[%clk 0:01:09.9]} 35. a5
{[%clk 0:00:20.3]} 35... Kd5 {[%clk 0:01:09.7]} 36. a6 {[%clk 0:00:15]} 36...
Kc6 {[%clk 0:01:09]} 37. b4 {[%clk 0:00:12.7]} 37... Ng4 {[%clk 0:01:07.6]} 38.
Kd3 {[%clk 0:00:12.2]} 38... Ne5+ {[%clk 0:01:06.2]} 39. Ke4 {[%clk 0:00:11.7]}
39... Nd7 {[%clk 0:01:02.4]} 40. Nd4+ {[%clk 0:00:09.8]} 40... Kb6 {[%clk
0:01:01.1]} 41. b5 {[%clk 0:00:10.1]} 41... f5+ {[%clk 0:00:58.8]} 42. Ke3
{[%clk 0:00:07.3]} 42... e5 {[%clk 0:00:56.5]} 43. Nc6 {[%clk 0:00:06.1]} 43...
Kxb5 {[%clk 0:00:46.8]} 44. a7 {[%clk 0:00:05.9]} 44... Nb6 {[%clk 0:00:46]} 45.
Nxe5 {[%clk 0:00:05.9]} 45... Na8 {[%clk 0:00:39.5]} 46. Kf4 {[%clk 0:00:05.7]}
46... Kc5 {[%clk 0:00:38.8]} 47. Kg5 {[%clk 0:00:05.4]} 47... Kd5 {[%clk
0:00:38.7]} 48. Nd7 {[%clk 0:00:05.1]} 48... Ke4 {[%clk 0:00:36.4]} 49. Nf8
{[%clk 0:00:04.3]} 49... f4 {[%clk 0:00:35.6]} 50. Kg4 {[%clk 0:00:03.9]} 50...
h5+ {[%clk 0:00:34.8]} 51. Kh4 {[%clk 0:00:02.7]} 51... f3 {[%clk 0:00:33.5]}
52. gxf3+ {[%clk 0:00:02.5]} 52... Kxf3 {[%clk 0:00:33.7]} 53. Nxg6 {[%clk
0:00:03.1]} 53... Ke4 {[%clk 0:00:32.7]} 54. Kxh5 {[%clk 0:00:04]} 54... Kd5
{[%clk 0:00:32.8]} 55. Ne7+ {[%clk 0:00:04.9]} 55... Kd6 {[%clk 0:00:32.4]} 56.
Nc8+ {[%clk 0:00:05.8]} 56... Kc7 {[%clk 0:00:32]} 57. Ne7 {[%clk 0:00:05.7]}
57... Kb7 {[%clk 0:00:31.7]} 58. Nd5 {[%clk 0:00:05.7]} 58... Kxa7 {[%clk
0:00:32]} 1/2-1/2

[Event "Early-Titled-Tuesday-Blitz-April-02-2024"]
[Site "Chess.com"]
[Date "2024.04.02"]
[Round "10"]
[White "Polish_fighter3000"]
[Black "shimastream"]
[Result "1-0"]
[WhiteElo "3149"]
[BlackElo "3008"]
[TimeControl "180+1"]
[EndTime "9:56:46 PDT"]
[Termination "Polish_fighter3000 won by checkmate"]

1. e4 {[%clk 0:03:00.9]} 1... b6 {[%clk 0:02:53.8]} 2. d4 {[%clk 0:03:00.3]}
2... Bb7 {[%clk 0:02:54.5]} 3. Bd3 {[%clk 0:03:00.6]} 3... e6 {[%clk 0:02:55.2]}
4. Nf3 {[%clk 0:02:57.2]} 4... c5 {[%clk 0:02:52.4]} 5. c3 {[%clk 0:02:48.1]}
5... Nf6 {[%clk 0:02:51.2]} 6. Qe2 {[%clk 0:02:47.3]} 6... d5 {[%clk 0:02:49.4]}
7. e5 {[%clk 0:02:47]} 7... Nfd7 {[%clk 0:02:47]} 8. O-O {[%clk 0:02:44.1]} 8...
Be7 {[%clk 0:02:45.8]} 9. Rd1 {[%clk 0:02:41.6]} 9... Nc6 {[%clk 0:02:45.2]} 10.
a3 {[%clk 0:02:38.7]} 10... g5 {[%clk 0:02:38.5]} 11. Be3 {[%clk 0:02:36.6]}
11... h5 {[%clk 0:02:34.1]} 12. b4 {[%clk 0:02:29.6]} 12... g4 {[%clk
0:02:33.8]} 13. Ne1 {[%clk 0:02:29.3]} 13... Qc7 {[%clk 0:02:33.3]} 14. bxc5
{[%clk 0:02:23]} 14... bxc5 {[%clk 0:02:33.2]} 15. a4 {[%clk 0:02:18.7]} 15...
c4 {[%clk 0:02:18.3]} 16. Bc2 {[%clk 0:02:18.5]} 16... O-O-O {[%clk 0:02:18]}
17. Bc1 {[%clk 0:01:57.3]} 17... Rde8 {[%clk 0:02:14.5]} 18. Ba3 {[%clk
0:01:57.3]} 18... f6 {[%clk 0:02:14]} 19. Bxe7 {[%clk 0:01:55.5]} 19... Rxe7
{[%clk 0:02:13.9]} 20. exf6 {[%clk 0:01:53.9]} 20... Nxf6 {[%clk 0:02:14.8]} 21.
Na3 {[%clk 0:01:50.5]} 21... a6 {[%clk 0:02:14.6]} 22. Qe3 {[%clk 0:01:44.6]}
22... h4 {[%clk 0:01:59.8]} 23. Qg5 {[%clk 0:01:40.2]} 23... Rf7 {[%clk
0:01:59.4]} 24. Rd2 {[%clk 0:01:34.5]} 24... e5 {[%clk 0:01:52.4]} 25. dxe5
{[%clk 0:01:25.6]} 25... Nxe5 {[%clk 0:01:53.3]} 26. Re2 {[%clk 0:01:15.5]}
26... Ne4 {[%clk 0:01:48.9]} 27. Bxe4 {[%clk 0:01:15.3]} 27... dxe4 {[%clk
0:01:49.8]} 28. Nac2 {[%clk 0:01:08.7]} 28... h3 {[%clk 0:01:48.5]} 29. g3
{[%clk 0:00:55.8]} 29... e3 {[%clk 0:01:41.7]} 30. Rxe3 {[%clk 0:00:34.5]} 30...
Qc6 {[%clk 0:01:37.9]} 31. f3 {[%clk 0:00:34.7]} 31... Rxf3 {[%clk 0:01:12.2]}
32. Qxe5 {[%clk 0:00:22.6]} 32... Rxe3 {[%clk 0:00:56]} 33. Nxe3 {[%clk
0:00:23.5]} 33... Qh1+ {[%clk 0:00:54.3]} 34. Kf2 {[%clk 0:00:23.9]} 34... Qxh2+
{[%clk 0:00:55.2]} 35. Kf1 {[%clk 0:00:21.8]} 35... Rf8+ {[%clk 0:00:51.1]} 36.
Nf5 {[%clk 0:00:21.8]} 36... Bg2+ {[%clk 0:00:36.5]} 37. Ke2 {[%clk 0:00:21.8]}
37... Bf3+ {[%clk 0:00:36.7]} 38. Ke3 {[%clk 0:00:15.2]} 38... Qe2+ {[%clk
0:00:35.7]} 39. Kd4 {[%clk 0:00:13.2]} 39... Rd8+ {[%clk 0:00:27.5]} 40. Nd6+
{[%clk 0:00:13]} 40... Kc7 {[%clk 0:00:26.5]} 41. Nxf3 {[%clk 0:00:09.9]} 41...
gxf3 {[%clk 0:00:24.3]} 42. Qc5+ {[%clk 0:00:05]} 42... Kd7 {[%clk 0:00:22.7]}
43. Qd5 {[%clk 0:00:02.4]} 43... Qd3+ {[%clk 0:00:11]} 44. Kc5 {[%clk
0:00:02.4]} 44... f2 {[%clk 0:00:05.7]} 45. Qf7# {[%clk 0:00:01.8]} 1-0

[Event "Early-Titled-Tuesday-Blitz-April-02-2024"]
[Site "Chess.com"]
[Date "2024.04.02"]
[Round "10"]
[White "abelmat"]
[Black "Boxerandchessplayer"]
[Result "0-1"]
[WhiteElo "2120"]
[BlackElo "2218"]
[TimeControl "180+1"]
[EndTime "9:56:47 PDT"]
[Termination "Boxerandchessplayer won on time"]

1. d4 {[%clk 0:03:00.9]} 1... d5 {[%clk 0:02:55.9]} 2. c4 {[%clk 0:03:00.6]}
2... e6 {[%clk 0:02:55.7]} 3. Nf3 {[%clk 0:03:01]} 3... c6 {[%clk 0:02:56.2]} 4.
Nc3 {[%clk 0:03:01.4]} 4... Nf6 {[%clk 0:02:54.2]} 5. e3 {[%clk 0:03:01.5]} 5...
Nbd7 {[%clk 0:02:54.6]} 6. Bd3 {[%clk 0:03:01]} 6... dxc4 {[%clk 0:02:54.8]} 7.
Bxc4 {[%clk 0:03:00.9]} 7... b5 {[%clk 0:02:55.7]} 8. Bd3 {[%clk 0:03:01]} 8...
Bb7 {[%clk 0:02:56.6]} 9. e4 {[%clk 0:02:59.4]} 9... a6 {[%clk 0:02:56.3]} 10.
O-O {[%clk 0:02:57.9]} 10... c5 {[%clk 0:02:55.9]} 11. d5 {[%clk 0:02:54.1]}
11... e5 {[%clk 0:02:51.3]} 12. a4 {[%clk 0:02:47.8]} 12... c4 {[%clk
0:02:49.1]} 13. Bc2 {[%clk 0:02:40.2]} 13... b4 {[%clk 0:02:47.4]} 14. Ne2
{[%clk 0:02:37.5]} 14... Bc5 {[%clk 0:02:45]} 15. Bg5 {[%clk 0:02:29.4]} 15...
O-O {[%clk 0:02:43.3]} 16. Ng3 {[%clk 0:02:23.9]} 16... h6 {[%clk 0:02:41.2]}
17. Bxf6 {[%clk 0:02:07.6]} 17... Qxf6 {[%clk 0:02:42.1]} 18. Nf5 {[%clk
0:02:05.2]} 18... a5 {[%clk 0:02:38.6]} 19. h3 {[%clk 0:02:01.1]} 19... Rfe8
{[%clk 0:02:14]} 20. Nh2 {[%clk 0:02:00.4]} 20... Bf8 {[%clk 0:02:10.4]} 21. Qg4
{[%clk 0:01:42.9]} 21... Nc5 {[%clk 0:02:01.1]} 22. Rad1 {[%clk 0:01:36.1]}
22... Bc8 {[%clk 0:01:45.7]} 23. Qe2 {[%clk 0:01:21.9]} 23... Ba6 {[%clk
0:01:28.4]} 24. Ng4 {[%clk 0:01:18.7]} 24... Qb6 {[%clk 0:01:29]} 25. Qf3 {[%clk
0:01:14.2]} 25... c3 {[%clk 0:01:23.1]} 26. Rfe1 {[%clk 0:01:02.4]} 26... b3
{[%clk 0:01:19.6]} 27. Bxb3 {[%clk 0:00:47.6]} 27... Qxb3 {[%clk 0:01:13.8]} 28.
bxc3 {[%clk 0:00:45.3]} 28... Nxa4 {[%clk 0:01:03.6]} 29. Qg3 {[%clk 0:00:35.5]}
29... Kh7 {[%clk 0:00:55.8]} 30. Qh4 {[%clk 0:00:21.6]} 30... Nxc3 {[%clk
0:00:36.5]} 31. Ngxh6 {[%clk 0:00:18.8]} 31... gxh6 {[%clk 0:00:33.5]} 32. Qf6
{[%clk 0:00:17.1]} 32... Ra7 {[%clk 0:00:19]} 33. Rc1 {[%clk 0:00:11.1]} 33...
Ne2+ {[%clk 0:00:17.7]} 34. Rxe2 {[%clk 0:00:05.3]} 34... Bxe2 {[%clk
0:00:18.6]} 35. Rc6 {[%clk 0:00:04]} 35... Qb1+ {[%clk 0:00:09]} 36. Kh2 {[%clk
0:00:02.1]} 36... Qxe4 {[%clk 0:00:07.7]} 0-1